fUST/lending_fUST_20250911
["ID","MTS","AMOUNT","RATE_DAILY","PERIOD"]
[384853419,1757593841775,-480.0,0.00014246,2]
[384853420,1757593841785,-92.29849051,0.00014246,2]
[384853421,1757593841798,-387.70150949,0.00014246,2]
[384853422,1757593841808,-480.0,0.00014246,2]
[384853423,1757593841817,-480.0,0.00014246,2]
[384853424,1757593841830,-26.88261602,0.00014246,2]
[384853425,1757593841841,-453.11738398,0.00014246,2]
[384853426,1757593841851,-480.0,0.00014246,2]
[384853427,1757593841861,-480.0,0.00014246,2]
[384853428,1757593841870,-480.0,0.00014246,2]
[384853429,1757593841879,-480.0,0.00014246,2]
[384853430,1757593841889,-480.0,0.00014246,2]
[384853431,1757593841899,-466.35610498,0.00014246,2]
[384853432,1757593841911,-480.0,0.00014246,2]
[384853433,1757593841921,-480.0,0.00014246,2]
[384853434,1757593841931,-480.0,0.00014246,2]
[384853435,1757593841941,-480.0,0.00014246,2]
[384853436,1757593841950,-480.0,0.00014246,2]
[384853437,1757593841960,-480.0,0.00014246,2]
[384853438,1757593841969,-480.0,0.00014246,2]
[384853439,1757593841979,-480.0,0.00014246,2]
[384853440,1757593841988,-480.0,0.00014246,2]
[384853441,1757593841998,-480.0,0.00014246,2]
[384853442,1757593842007,-480.0,0.00014246,2]
[384853443,1757593842016,-480.0,0.00014246,2]
[384853444,1757593842025,-480.0,0.00014246,2]
[384853445,1757593842034,-480.0,0.00014246,2]
[384853446,1757593842044,-480.0,0.00014246,2]
[384853447,1757593842053,-416.5083883,0.00014246,2]
[384853448,1757593842063,-480.0,0.00014246,2]
[384853449,1757593842073,-421.59935684,0.00014246,2]
[384853450,1757593842082,-480.0,0.00014246,2]
[384853451,1757593842093,-412.12590199,0.00014246,2]
[384853452,1757593842103,-434.67085714,0.00014246,2]
[384853453,1757593842113,-480.0,0.00014246,2]
[384853454,1757593842123,-480.0,0.00014246,2]
[384853455,1757593842134,-480.0,0.00014246,2]
[384853456,1757593842145,-480.0,0.00014246,2]
[384853457,1757593842155,-480.0,0.00014246,2]
[384853458,1757593842171,-480.0,0.00014246,2]
[384853459,1757593842181,-480.0,0.00014246,2]
[384853460,1757593842190,-480.0,0.00014246,2]
[384853461,1757593842200,-480.0,0.00014246,2]
[384853462,1757593842212,-480.0,0.00014246,2]
[384853463,1757593842222,-480.0,0.00014246,2]
[384853464,1757593842232,-480.0,0.00014246,2]
[384853465,1757593842244,-199.3251279,0.00014246,2]
[384853466,1757593842289,-280.6748721,0.00014246,2]
[384853467,1757593842302,-480.0,0.00014246,2]
[384853468,1757593842314,-406.16185557,0.00014246,2]
[384853517,1757593847306,-73.83814443,0.00014246,2]
[384853518,1757593847317,-480.0,0.00014246,2]
[384853519,1757593847328,-480.0,0.00014246,2]
[384853520,1757593847338,-480.0,0.00014246,2]
[384853521,1757593847348,-494.44,0.00014246,2]
[384853522,1757593847358,-480.0,0.00014246,2]
[384853523,1757593847368,-480.0,0.00014246,2]
[384853524,1757593847378,-480.0,0.00014519,2]
[384853525,1757593847388,-480.0,0.00014519,2]
[384853526,1757593847399,-480.0,0.0001452,2]
[384853527,1757593847408,-480.0,0.0001452,2]
[384853528,1757593847420,-500.0,0.0001452,2]
[384853529,1757593847430,-480.0,0.0001452,2]
[384853530,1757593847439,-480.0,0.0001452,2]
[384853531,1757593847449,-480.0,0.0001452,2]
[384853532,1757593847458,-480.0,0.0001452,2]
[384853533,1757593847468,-480.0,0.0001452,2]
[384853534,1757593847478,-480.0,0.0001452,2]
[384853535,1757593847488,-480.0,0.0001452,2]
[384853536,1757593847498,-480.0,0.0001452,2]
[384853537,1757593847509,-480.0,0.0001452,2]
[384853538,1757593847519,-480.0,0.0001452,2]
[384853539,1757593847528,-480.0,0.0001452,2]
[384853540,1757593847538,-510.38925505,0.0001452,2]
[384853541,1757593847547,-480.0,0.0001452,2]
[384853542,1757593847557,-480.0,0.0001452,2]
[384853543,1757593847566,-480.0,0.0001452,2]
[384853544,1757593847576,-480.0,0.0001452,2]
[384853545,1757593847587,-480.0,0.0001452,2]
[384853546,1757593847598,-480.0,0.0001452,2]
[384853547,1757593847608,-480.0,0.0001452,2]
[384853548,1757593847619,-514.4,0.0001452,2]
[384853549,1757593847629,-500.0,0.00014524,2]
[384853550,1757593847639,-500.0,0.00014524,2]
[384853551,1757593847649,-500.0,0.00014526,2]
[384853552,1757593847662,-480.0,0.00014793,2]
[384853553,1757593847673,-480.0,0.00014793,2]
[384853554,1757593847683,-560.22,0.00014794,2]
[384853555,1757593847694,-480.0,0.00014794,2]
[384853556,1757593847704,-480.0,0.00014794,2]
[384853557,1757593847715,-388.08,0.00014794,2]
[384853558,1757593847726,-244.54,0.00014794,2]
[384853559,1757593847736,-480.0,0.00014794,2]
[384853560,1757593847750,-480.0,0.00014794,2]
[384853561,1757593847764,-480.0,0.00014794,2]
[384853562,1757593847782,-246.42,0.00014794,2]
[384853563,1757593847794,-480.0,0.00014794,2]
[384853564,1757593847805,-480.0,0.00014794,2]
[384853565,1757593847816,-530.95967032,0.0001503,2]
[384853566,1757593847831,-233.10680167,0.0001503,2]
[384853567,1757593847844,-846.96613202,0.0001503,2]
[384853568,1757593847854,-160.0,0.0001503,2]
[384853569,1757593847864,-417.15472785,0.0001503,2]
[384853570,1757593847873,-217.69300629,0.0001503,2]
[384853571,1757593847883,-160.0,0.0001503,2]
[384853572,1757593847893,-160.0,0.0001503,2]
[384853573,1757593847904,-160.0,0.00015031,2]
[384853574,1757593847918,-434.32,0.00015067,2]
[384853575,1757593847928,-480.0,0.00015068,2]
[384853576,1757593847938,-480.0,0.00015068,2]
[384853577,1757593847947,-480.0,0.00015068,2]
[384853578,1757593847957,-480.0,0.00015068,2]
[384853579,1757593847967,-363.58,0.00015068,2]
[384853580,1757593847977,-480.0,0.00015342,2]
[384853581,1757593847986,-480.0,0.00015342,2]
[384853582,1757593847996,-584.07,0.00015342,2]
[384853583,1757593848005,-480.0,0.00015342,2]
[384853584,1757593848015,-480.0,0.00015616,2]
[384853585,1757593848024,-480.0,0.00015616,2]
[384853586,1757593848034,-302.06,0.00015616,2]
[384853587,1757593848044,-480.0,0.0001589,2]
[384853588,1757593848054,-491.44270319,0.0001589,2]
[384853589,1757593848070,-635.9539807,0.00016085,2]
[384853590,1757593848079,-426.25,0.00016164,2]
[384853591,1757593848088,-1305.0,0.0001647,2]
[384853592,1757593848100,-635.9539807,0.00018023,2]
[384853593,1757593848109,-409.0,0.00018471,2]
[384853594,1757593848118,-17118.58192529,0.0001899,2]
[384853595,1757593848127,-21265.79451242,0.00019,2]
[384853596,1757593848137,-232.49071433,0.00019319,2]
[384853597,1757593848147,-2030.296672,0.00019319,2]
[384853598,1757593848156,-162.380719,0.00019319,2]
[384853599,1757593848170,-7130.01969498,0.000199,2]
[384853600,1757593848180,-635.9539807,0.00019962,2]
[384853601,1757593848190,-20285.34470015,0.0002,2]
[384853602,1757593848200,-381.177707,0.00020187,2]
[384853603,1757593848210,-277.0,0.000202,2]
[384853604,1757593848220,-7130.01969476,0.00020327,2]
[384853605,1757593848230,-1400.0,0.00020712,2]
[384853606,1757593848240,-7130.01969476,0.00020755,2]
[384853607,1757593848251,-576.212,0.00020835,2]
[384853608,1757593848261,-168.0,0.00021104,2]
[384853609,1757593848271,-7130.01969476,0.00021182,2]
[384853610,1757593848281,-2426.82879455,0.0002134,2]
[384853611,1757593848291,-1505.46324869,0.0002134,2]
[384853612,1757593848301,-409.0,0.00021471,2]
[384853613,1757593848311,-7130.01969476,0.0002161,2]
[384853614,1757593848320,-1400.0,0.00021808,2]
[384853615,1757593848330,-530.95967032,0.0002188,3]
[384853616,1757593848340,-2000.0,0.000219,2]
[384853617,1757593848349,-635.9539807,0.000219,2]
[384853618,1757593848358,-151.0,0.000219,2]
[384853619,1757593848367,-151.0,0.000219,2]
[384853620,1757593848377,-151.0,0.000219,2]
[384853621,1757593848387,-151.0,0.000219,2]
[384853622,1757593848396,-151.0,0.000219,2]
[384853623,1757593848407,-151.0,0.000219,2]
[384853624,1757593848420,-151.0,0.000219,2]
[384853625,1757593848430,-151.0,0.000219,2]
[384853626,1757593848439,-153.75245,0.000219,2]
[384853627,1757593848448,-151.0,0.000219,2]
[384853628,1757593848457,-151.0,0.000219,2]
[384853629,1757593848466,-151.0,0.000219,2]
[384853630,1757593848476,-39888.01120274,0.0002197,15]
[384853631,1757593848486,-166.0,0.0002197,2]
[384853632,1757593848495,-500.0,0.0002197,5]
[384853633,1757593848505,-1305.0,0.0002197,2]
[384853634,1757593848514,-1305.0,0.0002197,2]
[384853635,1757593848524,-1305.0,0.0002197,2]
[384853636,1757593848533,-1305.0,0.0002197,2]
[384853637,1757593848542,-1305.0,0.0002197,2]
[384853638,1757593848552,-1305.0,0.0002197,2]
[384853639,1757593848565,-1305.0,0.0002197,2]
[384853640,1757593848574,-1305.0,0.0002197,2]
[384853641,1757593848585,-1305.0,0.0002197,2]
[384853642,1757593848594,-897.02484507,0.0002197,2]
[384853643,1757593848604,-151.0,0.0002197,7]
[384853644,1757593848612,-277.374392,0.0002197,7]
[384853645,1757593848622,-151.0,0.0002197,7]
[384853646,1757593848631,-151.0,0.0002197,7]
[384853647,1757593848640,-151.0,0.0002197,7]
[384853648,1757593848650,-151.0,0.0002197,7]
[384853649,1757593848659,-151.0,0.0002197,7]
[384853650,1757593848673,-151.0,0.0002197,7]
[384853651,1757593848682,-151.0,0.0002197,7]
[384853652,1757593848692,-151.0,0.0002197,7]
[384853653,1757593848701,-151.0,0.0002197,7]
[384853654,1757593848710,-151.0,0.0002197,7]
[384853655,1757593848720,-151.0,0.0002197,7]
[384853656,1757593848730,-151.0,0.0002197,7]
[384853657,1757593848740,-151.0,0.0002197,7]
[384853658,1757593848749,-151.0,0.0002197,7]
[384853659,1757593848770,-151.0,0.0002197,7]
[384853660,1757593848780,-151.0,0.0002197,7]
[384853661,1757593848790,-151.0,0.0002197,7]
[384853662,1757593848800,-151.0,0.0002197,7]
[384853663,1757593848810,-151.0,0.0002197,7]
[384853664,1757593848820,-151.0,0.0002197,7]
[384853665,1757593848833,-151.0,0.0002197,7]
[384853666,1757593848843,-153.871515,0.0002197,7]
[384853667,1757593848853,-151.0,0.0002197,7]
[384853668,1757593848863,-151.0,0.0002197,7]
[384853669,1757593848949,-151.0,0.0002197,7]
[384853670,1757593848960,-151.0,0.0002197,7]
[384853671,1757593848971,-151.0,0.0002197,7]
[384853672,1757593848981,-151.0,0.0002197,7]
[384853673,1757593848990,-151.0,0.0002197,7]
[384853674,1757593849000,-151.0,0.0002197,7]
[384853675,1757593849010,-151.0,0.0002197,7]
[384853676,1757593849020,-151.0,0.0002197,7]
[384853677,1757593849042,-151.0,0.0002197,7]
[384853678,1757593849052,-500.0,0.00021973,2]
[384853679,1757593849062,-750468.30147674,0.0002198,7]
[384853680,1757593849072,-151.0,0.0002198,7]
[384853681,1757593849082,-151.0,0.0002198,7]
[384853682,1757593849091,-164.166382,0.0002198,7]
[384853683,1757593849101,-151.0,0.0002198,7]
[384853684,1757593849118,-151.0,0.0002198,7]
[384853685,1757593849129,-151.0,0.0002198,7]
[384853686,1757593849140,-151.0,0.0002198,7]
[384853687,1757593849151,-151.0,0.0002198,7]
[384853688,1757593849163,-151.0,0.0002198,7]
[384853689,1757593849173,-153.071325,0.0002198,7]
[384853690,1757593849182,-151.0,0.0002198,7]
[384853691,1757593849192,-151.0,0.0002198,7]
[384853692,1757593849203,-151.0,0.0002198,7]
[384853693,1757593849213,-151.0,0.0002198,7]
[384853694,1757593849223,-151.0,0.0002198,7]
[384853695,1757593849233,-151.0,0.0002198,7]
[384853696,1757593849242,-151.0,0.0002198,7]
[384853697,1757593849252,-151.0,0.0002198,2]
[384853698,1757593849262,-151.0,0.0002198,7]
[384853699,1757593849271,-151.0,0.0002198,7]
[384853700,1757593849282,-154.250713,0.0002198,7]
[384853701,1757593849291,-151.0,0.0002198,7]
[384853702,1757593849301,-292.89928,0.0002198,7]
[384853703,1757593849312,-151.0,0.0002198,7]
[384853704,1757593849322,-197.182747,0.0002198,7]
[384853705,1757593849331,-197.182747,0.0002198,7]
[384853706,1757593849341,-151.0,0.0002198,7]
[384853707,1757593849351,-197.182747,0.0002198,7]
[384853708,1757593849362,-197.182747,0.0002198,7]
[384853709,1757593849372,-154.088002,0.0002198,7]
[384853710,1757593849382,-151.0,0.0002198,7]
[384853711,1757593849392,-151.0,0.0002198,7]
[384853712,1757593849402,-151.0,0.0002198,7]
[384853713,1757593849415,-151.0,0.0002198,7]
[384853714,1757593849425,-171.309264,0.0002198,7]
[384853715,1757593849434,-151.0,0.0002198,7]
[384853716,1757593849444,-151.0,0.0002198,7]
[384853717,1757593849454,-151.0,0.0002198,7]
[384853718,1757593849463,-151.0,0.0002198,7]
[384853719,1757593849473,-151.0,0.0002198,7]
[384853720,1757593849483,-151.0,0.0002198,7]
[384853721,1757593849493,-151.0,0.0002198,7]
[384853722,1757593849503,-151.0,0.0002198,7]
[384853723,1757593849513,-151.0,0.0002198,7]
[384853724,1757593849523,-151.0,0.0002198,7]
[384853725,1757593849532,-151.0,0.0002198,7]
[384853726,1757593849542,-180.532224,0.0002198,7]
[384853727,1757593849552,-151.0,0.0002198,7]
[384853728,1757593849562,-151.0,0.0002198,7]
[384853729,1757593849572,-151.0,0.0002198,7]
[384853730,1757593849582,-151.0,0.0002198,7]
[384853731,1757593849591,-151.0,0.0002198,7]
[384853732,1757593849601,-151.0,0.0002198,7]
[384853733,1757593849610,-151.0,0.0002198,7]
[384853734,1757593849620,-530.95967032,0.0002198,7]
[384853735,1757593849630,-151.0,0.0002198,7]
[384853736,1757593849639,-151.0,0.0002198,7]
[384853737,1757593849650,-160.0,0.0002198,7]
[384853738,1757593849660,-151.0,0.0002198,7]
[384853739,1757593849672,-151.0,0.0002198,7]
[384853740,1757593849683,-151.0,0.0002198,7]
[384853741,1757593849693,-151.0,0.0002198,7]
[384853742,1757593849703,-417.15472785,0.0002198,7]
[384853743,1757593849713,-19338.12,0.00022,7]
[384853744,1757593849723,-8453.76,0.00022,7]
[384853745,1757593849733,-160.0,0.00022,7]
[384853746,1757593849743,-199315.24,0.00022,7]
[384853747,1757593849753,-2590.77,0.00022,2]
[384853748,1757593849763,-3514.38,0.00022,7]
[384853749,1757593849773,-1000.0,0.00022,22]
[384853750,1757593849783,-355.54824171,0.00022,2]
[384853751,1757593849793,-168.37307981,0.00022,10]
[384853752,1757593849802,-555.1381787,0.00022,7]
[384853753,1757593849812,-277.4588684,0.00022,2]
[384853754,1757593849822,-153.261702,0.00022,7]
[384853755,1757593849836,-151.0,0.00022,7]
[384853756,1757593849846,-151.0,0.00022,7]
[384853757,1757593849855,-151.0,0.00022,7]
[384853758,1757593849865,-151.0,0.00022,7]
[384853759,1757593849876,-151.0,0.00022,7]
[384853760,1757593849885,-151.0,0.00022,7]
[384853761,1757593849896,-197.182747,0.00022,7]
[384853762,1757593849907,-197.182747,0.00022,7]
[384853763,1757593849920,-197.182747,0.00022,7]
[384853764,1757593849930,-197.182747,0.00022,7]
[384853765,1757593849940,-151.0,0.00022,7]
[384853766,1757593849949,-151.0,0.00022,7]
[384853767,1757593849960,-151.0,0.00022,7]
[384853768,1757593849969,-151.0,0.00022,7]
[384853769,1757593849979,-166.993052,0.00022,7]
[384853770,1757593849988,-151.0,0.00022,7]
[384853771,1757593849998,-151.0,0.00022,7]
[384853772,1757593850008,-151.0,0.00022,7]
[384853773,1757593850018,-151.0,0.00022,7]
[384853774,1757593850027,-151.0,0.00022,7]
[384853775,1757593850036,-151.0,0.00022,7]
[384853776,1757593850047,-167.565293,0.00022,7]
[384853777,1757593850059,-151.0,0.00022,7]
[384853778,1757593850068,-151.0,0.00022,7]
[384853779,1757593850078,-151.0,0.00022,7]
[384853780,1757593850088,-151.0,0.00022,7]
[384853781,1757593850098,-289.944848,0.00022,7]
[384853782,1757593850108,-166.195936,0.00022,7]
[384853783,1757593850117,-151.0,0.00022,7]
[384853784,1757593850127,-168.0,0.00022,7]
[384853785,1757593850136,-936.66,0.00022,2]
[384853786,1757593850146,-151.0,0.00022,7]
[384853787,1757593850155,-151.0,0.00022,7]
[384853788,1757593850168,-152.519859,0.00022,7]
[384853789,1757593850178,-7130.01969476,0.00022037,2]
[384853790,1757593850188,-312.0,0.00022128,2]
[384853791,1757593850198,-312.0,0.00022308,2]
[384853792,1757593850208,-1000.0,0.00022416,5]
[384853793,1757593850218,-7130.01969476,0.00022464,2]
[384853794,1757593850228,-1000.0,0.00022499,20]
[384853795,1757593850239,-492.0,0.00022499,20]
[384853796,1757593850249,-1000.0,0.00022521,2]
[384853797,1757593850259,-202.0,0.0002259,5]
[384853798,1757593850268,-587.15779898,0.00022665,2]
[384853799,1757593850278,-5000.0,0.000228,2]
[384853800,1757593850288,-5091.38256663,0.000228,2]
[384853801,1757593850297,-936.66,0.0002283,2]
[384853802,1757593850306,-7130.01969476,0.00022892,2]
[384853803,1757593850316,-199315.24,0.000229,7]
[384853804,1757593850326,-3514.38,0.000229,7]
[384853805,1757593850336,-2000.0,0.000229,2]
[384853806,1757593850346,-151.0,0.000229,7]
[384853807,1757593850355,-151.0,0.000229,7]
[384853808,1757593850365,-151.0,0.000229,7]
[384853809,1757593850375,-151.0,0.000229,7]
[384853810,1757593850385,-151.0,0.000229,7]
[384853811,1757593850394,-197.182747,0.000229,7]
[384853812,1757593850404,-197.182747,0.000229,7]
[384853813,1757593850416,-197.182747,0.000229,7]
[384853814,1757593850425,-197.182747,0.000229,7]
[384853815,1757593850435,-151.0,0.000229,7]
[384853816,1757593850444,-151.0,0.000229,7]
[384853817,1757593850454,-151.0,0.000229,7]
[384853818,1757593850464,-151.0,0.000229,7]
[384853819,1757593850474,-151.0,0.000229,7]
[384853820,1757593850483,-151.0,0.000229,7]
[384853821,1757593850493,-151.0,0.000229,7]
[384853822,1757593850503,-151.0,0.000229,7]
[384853823,1757593850512,-151.0,0.000229,7]
[384853824,1757593850521,-185.007786,0.000229,7]
[384853825,1757593850531,-151.0,0.000229,7]
[384853826,1757593850541,-151.0,0.000229,7]
[384853827,1757593850550,-151.0,0.000229,7]
[384853828,1757593850560,-151.0,0.000229,7]
[384853829,1757593850569,-1400.0,0.00022904,2]
[384853830,1757593850580,-160.0,0.00022985,3]
[384853831,1757593850591,-247.18899095,0.00022985,5]
[384853832,1757593850601,-846.88337432,0.00023,3]
[384853833,1757593850610,-1161.35544743,0.00023,5]
[384853834,1757593850620,-160.0,0.00023,3]
[384853835,1757593850629,-283.0,0.00023,7]
[384853836,1757593850639,-217.69300629,0.00023,3]
[384853837,1757593850649,-160.0,0.00023,3]
[384853838,1757593850659,-233.10680167,0.00023,3]
[384853839,1757593850673,-1500.0,0.00023068,2]
[384853840,1757593850682,-2000.0,0.000231,2]
[384853841,1757593850692,-163.59652094,0.00023151,2]
[384853842,1757593850701,-188.4352839,0.00023205,2]
[384853843,1757593850711,-188.4352839,0.00023205,2]
[384853844,1757593850722,-188.4352839,0.00023205,2]
[384853845,1757593850732,-188.4352839,0.00023205,2]
[384853846,1757593850743,-188.4352839,0.00023205,2]
[384853847,1757593850753,-188.4352839,0.00023205,2]
[384853848,1757593850764,-1115.75,0.00023287,2]
[384853849,1757593850775,-500.0,0.00023287,2]
[384853850,1757593850785,-165.6893746,0.00023288,2]
[384853851,1757593850796,-151.0,0.00023288,7]
[384853852,1757593850807,-151.0,0.00023288,7]
[384853853,1757593850817,-151.0,0.00023288,7]
[384853854,1757593850830,-151.0,0.00023288,7]
[384853855,1757593850841,-7130.01969476,0.00023319,2]
[384853856,1757593850851,-188.4352839,0.0002337,2]
[384853857,1757593850862,-188.4352839,0.0002337,2]
[384853858,1757593850872,-188.4352839,0.0002337,2]
[384853859,1757593850884,-188.4352839,0.0002337,2]
[384853860,1757593850894,-188.4352839,0.0002337,2]
[384853861,1757593850905,-188.4352839,0.0002337,2]
[384853862,1757593850919,-188.4352839,0.0002337,2]
[384853863,1757593850930,-188.4352839,0.0002337,2]
[384853864,1757593850941,-282.4762944,0.0002337,2]
[384853865,1757593850951,-8453.76,0.000234,7]
[384853866,1757593850962,-260.25615747,0.000234,2]
[384853867,1757593850973,-5091.38256657,0.00023437,2]
[384853868,1757593850983,-200000.0,0.0002344,2]
[384853869,1757593850993,-227.240536,0.0002344,7]
[384853870,1757593851003,-151.0,0.0002344,7]
[384853871,1757593851012,-151.0,0.0002344,7]
[384853872,1757593851022,-151.0,0.0002344,7]
[384853873,1757593851032,-151.0,0.0002344,7]
[384853874,1757593851043,-197.182747,0.0002344,7]
[384853875,1757593851052,-197.182747,0.0002344,7]
[384853876,1757593851061,-197.182747,0.0002344,7]
[384853877,1757593851071,-197.182747,0.0002344,7]
[384853878,1757593851085,-151.0,0.0002344,7]
[384853879,1757593851095,-151.0,0.0002344,7]
[384853880,1757593851104,-151.0,0.0002344,7]
[384853881,1757593851114,-151.0,0.0002344,7]
[384853882,1757593851124,-151.0,0.0002344,7]
[384853883,1757593851135,-286.0,0.0002344,7]
[384853884,1757593851145,-224.585265,0.0002344,7]
[384853885,1757593851155,-151.0,0.0002344,7]
[384853886,1757593851168,-151.0,0.0002344,7]
[384853887,1757593851177,-151.0,0.0002344,7]
[384853888,1757593851187,-151.0,0.0002344,7]
[384853889,1757593851197,-236.800816,0.0002344,7]
[384853890,1757593851206,-430.59196184,0.00023473,2]
[384853891,1757593851216,-160.07264545,0.00023473,2]
[384853892,1757593851226,-19338.12,0.000235,7]
[384853893,1757593851236,-188.4352839,0.00023534,2]
[384853894,1757593851246,-260.25615741,0.00023567,2]
[384853895,1757593851256,-2000.0,0.00023616,2]
[384853896,1757593851266,-1000.0,0.0002362,5]
[384853897,1757593851275,-1000.0,0.0002364,5]
[384853898,1757593851285,-1000.0,0.0002366,5]
[384853899,1757593851294,-936.66,0.0002366,2]
[384853900,1757593851304,-1000.0,0.0002368,5]
[384853901,1757593851314,-4190.94738694,0.000237,14]
[384853902,1757593851324,-383845.620449,0.000237,2]
[384853903,1757593851334,-1000.0,0.000237,5]
[384853904,1757593851344,-1000.0,0.0002372,5]
[384853905,1757593851354,-260.25615741,0.00023733,2]
[384853906,1757593851364,-1000.0,0.0002374,5]
[384853907,1757593851374,-7130.01969476,0.00023747,2]
[384853908,1757593851384,-1000.0,0.0002376,5]
[384853909,1757593851394,-1000.0,0.0002378,5]
[384853910,1757593851404,-1914.61482,0.0002378,5]
[384853911,1757593851417,-199315.24,0.000238,7]
[384853912,1757593851427,-3514.38,0.000238,7]
[384853913,1757593851437,-1000.0,0.000238,5]
[384853914,1757593851447,-1000.0,0.000238,5]
[384853915,1757593851457,-272.890014,0.000238,7]
[384853916,1757593851466,-197.182747,0.000238,7]
[384853917,1757593851476,-197.182747,0.000238,7]
[384853918,1757593851486,-197.182747,0.000238,7]
[384853919,1757593851495,-197.182743,0.000238,7]
[384853920,1757593851505,-1000.0,0.0002382,5]
[384853921,1757593851515,-1000.0,0.0002382,5]
[384853922,1757593851525,-1000.0,0.0002384,5]
[384853923,1757593851535,-1000.0,0.0002384,5]
[384853924,1757593851544,-1000.0,0.0002386,5]
[384853925,1757593851554,-1000.0,0.0002386,5]
[384853926,1757593851564,-98063.0,0.0002387,2]
[384853927,1757593851574,-1000.0,0.0002388,5]
[384853928,1757593851584,-1000.0,0.0002388,5]
[384853929,1757593851594,-1071.1,0.000239,2]
[384853930,1757593851604,-1000.0,0.000239,5]
[384853931,1757593851614,-1000.0,0.000239,5]
[384853932,1757593851623,-260.25615741,0.000239,2]
[384853933,1757593851633,-160.0,0.0002392,3]
[384853934,1757593851643,-1000.0,0.0002392,5]
[384853935,1757593851654,-1000.0,0.0002392,5]
[384853936,1757593851666,-1000.0,0.0002394,5]
[384853937,1757593851677,-1000.0,0.0002394,5]
[384853938,1757593851792,-1000.0,0.0002396,5]
[384853939,1757593851803,-1000.0,0.0002396,5]
[384853940,1757593851813,-1000.0,0.0002398,5]
[384853941,1757593851824,-1000.0,0.0002398,5]
[384853942,1757593851837,-1344.65711842,0.00023989,18]
[384853943,1757593851846,-2000.0,0.0002399,7]
[384853944,1757593851856,-1431.28,0.00023999,7]
[384853945,1757593851867,-6143.23782436,0.00024,2]
[384853946,1757593851877,-1400.0,0.00024,2]
[384853947,1757593851887,-12267.65553158,0.00024,15]
[384853948,1757593851896,-10001.63806241,0.00024,7]
[384853949,1757593851906,-1211.98111826,0.00024,7]
[384853950,1757593851919,-1000.0,0.00024,14]
[384853951,1757593851929,-160.0,0.00024,7]
[384853952,1757593851940,-1000.0,0.00024,24]
[384853953,1757593851949,-8247.51046111,0.00024,2]
[384853954,1757593851958,-160.0,0.00024,7]
[384853955,1757593851968,-264.36911651,0.00024,3]
[384853956,1757593851977,-160.0,0.00024,7]
[384853957,1757593851988,-151.0,0.00024,3]
[384853958,1757593851997,-151.0,0.00024,3]
[384853959,1757593852006,-500.0,0.00024,9]
[384853960,1757593852015,-1000.0,0.00024,5]
[384853961,1757593852025,-1000.0,0.00024,5]
[384853962,1757593852034,-304.97969803,0.00024,7]
[384853963,1757593852043,-649.0,0.00024,2]
[384853964,1757593852053,-1787.5314,0.00024,2]
[384853965,1757593852067,-1787.5314,0.00024,2]
[384853966,1757593852089,-217.69300629,0.00024,7]